Cogmind - Beta 17 @@@ ROGUE MODE // 2026.07.18 @ 13:27:36 Player: LanceLander Result: Destroyed by S-27 Virus with Autogun Performance ------------- Evolutions (5) 2500 Regions Visited (12) 2400 Robots Destroyed (82) 410 Value Destroyed (3633) 3633 Prototype IDs (19) 380 Alien Tech Used (1) 200 Bonus (1078) 1078 TOTAL SCORE: 10601 Bonus ------- Registered with UFD 300 Met Optimus in HQ 500 Met Data Miner 300 Friendly Fire -22 Cogmind --------- Core Integrity 0/1000 Matter 73/300 Energy 98/100 System Corruption 1% Temperature Cool (0) Movement Core (150) Ox2 Location -5/Upper Caves Parts ------- > --- POWER (1) -------- (None) > --- PROPULSION (4) --- Compact Wheel > --- UTILITY (10) ----- Mini Drone Bay (3/3) > --- WEAPON (3) ------- Variable Charge Gun > --- INVENTORY (5) ---- Light Nuclear Core Lightning Gun High-powered Shock Rifle Tesla Rifle Peak State ------------ > --- POWER ------------ Angular Momentum Engine > --- PROPULSION ------- Antigrav System Antigrav System Antigrav System Antigrav System > --- UTILITY ---------- Advanced Heat Sink Improved Cooling System Makeshift Microdissipator Network Large Storage Unit Energy Well Advanced Sensor Array Improved Target Analyzer Improved Target Analyzer Improved Focal Shield Dynamic Insulation System > --- WEAPON ----------- Cooled Particle Cannon Cooled Particle Cannon > --- INVENTORY -------- Micro Fission Core Micro Fission Core Improved Heat Sink Improved Heat Sink Advanced Heat Sink Medium Storage Unit Tactical Coordination Suite Improved Target Analyzer Improved Target Analyzer Core Expander Lightning Gun Overtuned Pulse Rifle Overtuned Pulse Rifle Antimatter Cannon Dirty Datajack [Rating: 90] Favorites ----------- Power Fission Core Engine Angular Momentum Engine Power Core Fission Core Propulsion Carbon-fiber Leg Treads Light Treads Leg Carbon-fiber Leg Wheel Wheel Hover Unit Antigrav System Flight Unit VTOL Module Utility Large Storage Unit Device Advanced Heat Sink Storage Large Storage Unit Processor Makeshift Salvage Targeting Computer Protection Makeshift Light Armor Plating Weapon Cooled Particle Cannon Energy Gun Plasma Rifle Energy Cannon Cooled Particle Cannon Ballistic Gun Barrage Gun Ballistic Cannon Antimatter Cannon Launcher Heavy Shock Bomb Launcher Special Weapon Flamer Impact Weapon Great Maul Special Melee Weapon Dirty Datajack Build | -11 -10 -10 -9 -6 -6 -6 -6 -5 -5 -5 -5 -5 ------- Run | Yrd Mat Sub Scr Fac Low Low Dat Pro Fac Was Fac Upp Slots Evolved 10 | . . . . 8 . . . . 2 . . . Power . | . . . . . . . . . . . . . Propulsion 2 | . . . . 2 . . . . . . . . Utility 8 | . . . . 6 . . . . 2 . . . Weapon . | . . . . . . . . . . . . . Parts Attached 114 | 8 8 7 15 15 1 9 . 5 35 2 9 . Power 11 | 1 1 1 2 1 . . . 1 3 . 1 . Engine 6 | 1 1 1 1 . . . . 1 1 . . . Core 5 | . . . 1 1 . . . . 2 . 1 . Reactor . | . . . . . . . . . . . . . Propulsion 38 | 3 2 2 5 2 . 4 . . 15 1 4 . Treads 4 | 2 . . . . . 1 . . . . 1 . Leg 15 | 1 . . 4 2 . 2 . . 6 . . . Wheel 5 | . . 2 1 . . . . . 1 . 1 . Hover 9 | . 2 . . . . . . . 6 1 . . Flight 5 | . . . . . . 1 . . 2 . 2 . Utility 40 | 2 2 1 3 9 1 3 . 4 13 . 2 . Device 19 | 1 . . 1 5 1 1 . 2 7 . 1 . Storage 6 | 1 1 . . 1 . . . 1 1 . 1 . Processor 9 | . 1 . . 2 . 1 . . 5 . . . Hackware . | . . . . . . . . . . . . . Protection 6 | . . 1 2 1 . 1 . 1 . . . . Artifact . | . . . . . . . . . . . . . Weapon 25 | 2 3 3 5 3 . 2 . . 4 1 2 . Energy Gun 10 | 1 3 2 3 . . . . . . . 1 . Energy Cannon 5 | . . . . 2 . 2 . . 1 . . . Ballistic Gun 3 | 1 . 1 1 . . . . . . . . . Ballistic Cannon 2 | . . . . 1 . . . . . 1 . . Launcher 1 | . . . . . . . . . . . 1 . Special Weapon 1 | . . . 1 . . . . . . . . . Impact Weapon 2 | . . . . . . . . . 2 . . . Slashing Weapon . | . . . . . . . . . . . . . Piercing Weapon . | . . . . . . . . . . . . . Special Melee Weapon 1 | . . . . . . . . . 1 . . . Unidentified Prototypes 4 | . . . . 2 . . . . 1 . 1 . Parts Lost 55 | . 2 2 . 3 2 8 . 6 26 3 2 1 Power 4 | . . . . . . . . 1 3 . . . Propulsion 22 | . . 1 . 1 1 3 . 2 11 1 1 1 Utility 21 | . 2 . . 1 1 3 . 3 9 1 1 . Weapon 8 | . . 1 . 1 . 2 . . 3 1 . . Highest Loss Streak 5 | . 1 3 . 2 2 5 . 3 5 2 1 1 To Critical Strikes . | . . . . . . . . . . . . . Average Backups 10 | 4 7 4 6 11 14 13 15 11 12 6 4 4 Power . | . . . . . 1 1 2 1 1 . . 1 Propulsion . | 3 3 . . . . . . . . . . . Utility 4 | . . 1 2 6 6 5 6 3 4 . . . Weapon 4 | . 2 2 2 3 6 4 5 5 4 5 4 3 Tool/Special . | . . . . . . . . . . . . . Unused Backups 22 | . 6 3 7 . . . . . 1 2 . 3 Power 2 | . . 1 . . . . . . 1 . . . Propulsion 5 | . 3 2 . . . . . . . . . . Utility 1 | . . . 1 . . . . . . . . . Weapon 14 | . 3 . 6 . . . . . . 2 . 3 Tool/Special . | . . . . . . . . . . . . . Average Slot Usage (%) 80 | . 93 82 88 89 85 74 80 81 85 56 48 15 Engine 4 | . 14 14 12 . . . . 4 4 . . . Core 3 | . . . . 6 6 6 6 1 . 5 4 . Leg 6 | . . . 1 23 20 2 13 6 3 9 3 . Wheel 5 | . . 17 25 . . . . . . . . 5 Hover 1 | . 12 7 . . . . . . 8 1 3 . Flight 2 | . . . . . . 5 6 6 2 . 4 4 Device 20 | . 4 . 3 25 25 25 26 30 29 11 7 5 Storage 7 | . 14 2 6 6 6 6 6 10 11 6 . . Processor 3 | . 4 . . 1 6 5 . . 6 16 12 . Protection 6 | . . 12 8 10 6 6 6 5 2 . . . Energy Gun 4 | . 18 21 14 5 . . . . . . . . Energy Cannon 7 | . . . . 4 13 13 13 13 8 . . . Ballistic Gun 2 | . 9 6 13 . . . . . . . . . Peak Build Rating 90 | 7 11 15 29 69 65 62 58 62 90 71 69 14 Average Rating 48 | 5 8 13 21 63 64 54 58 55 71 46 45 10 On Entrance 35 | . 7 10 13 25 65 53 58 58 49 68 43 11 Avg Prop Armor Cover (%) 4 | . . 2 6 . . 2 1 1 5 4 12 7 Naked Turns 35 | . . . . . . . . . . . 35 . Heaviest Build 70 | 14 19 30 38 60 59 62 60 66 70 44 23 7 Greatest Support 68 | 40 40 30 38 68 53 38 30 30 48 48 27 4 Greatest Overweight (x) 23 | . 2 2 3 1 1 20 1 21 23 2 1 2 Average Overweight (x) 1 | . . 1 1 . 1 9 1 4 3 . . . Largest Inventory Capacity 20 | 8 10 10 10 15 15 15 15 15 20 10 5 5 Average Capacity 12 | 7 8 5 7 14 15 15 15 15 14 7 5 5 Most Carried 15 | 6 10 8 10 15 15 15 15 15 15 7 5 5 Average Carried 10 | 4 7 5 6 11 14 13 15 11 12 6 4 4 Final Capacity 15 | 8 8 5 10 15 15 15 15 15 10 5 5 5 Final Carried 15 | 6 8 5 10 14 15 15 15 11 6 5 5 4 Scrap Suit Usage (%) 51 | . . . . 100 100 100 100 36 . . . . Parts Cannibalized 14 | . . . . 10 . 2 . 2 . . . . Class Distribution -------------------- 57% | Scavenger-Mutant 22% | Mutant 10% | Scavenger-Scrapper 5% | Derelict-Mutant 3% | Subdweller-Mutant Dominant Class ---------------- Mutant | -10/Materials Subdweller-Mutant | -10/Subcaves Mutant | -9/Scraptown Scavenger-Scrapper | -6/Factory Scavenger-Mutant | -6/Lower Caves Scavenger-Mutant | -6/Lower Caves Scavenger-Mutant | -6/Data Miner Scavenger-Mutant | -5/Proximity Caves Scavenger-Mutant | -5/Factory Scavenger-Mutant | -5/Waste Scavenger-Mutant | -5/Factory Mutant | -5/Upper Caves Resources | -11 -10 -10 -9 -6 -6 -6 -6 -5 -5 -5 -5 -5 ----------- Run | Yrd Mat Sub Scr Fac Low Low Dat Pro Fac Was Fac Upp Matter Collected 1881 | 172 253 80 329 316 34 100 . 46 528 . 23 . Remotely . | . . . . . . . . . . . . . Salvage Created 3767 | 44 220 253 140 937 135 441 . 391 993 . 213 . Parts 167 | 8 15 11 7 37 6 17 . 13 47 . 6 . Haulers Intercepted 1 | . . . . 1 . . . . . . . . Recyclers Shooed 1 | . . . . . . . . . . . 1 . Parts Field Recycled . | . . . . . . . . . . . . . Retrieved Matter . | . . . . . . . . . . . . . Parts Self-Destructed 38 | . . 4 . . 5 18 . 11 . . . . Prevented 1 | . . . . . . . . 1 . . . . Parts Restored . | . . . . . . . . . . . . . Kills | -11 -10 -10 -9 -6 -6 -6 -6 -5 -5 -5 -5 -5 ------- Run | Yrd Mat Sub Scr Fac Low Low Dat Pro Fac Was Fac Upp Combat Hostiles Destroyed 75 | . 7 5 2 23 1 7 . 6 21 . 3 . Guns 26 | . 7 5 2 11 . . . . . . 1 . Cannons 40 | . . . . 10 1 7 . 6 16 . . . AOE 9 | . . . . 2 . . . . 5 . 2 . Classes Destroyed 17 | 1 2 1 1 6 1 3 . 1 1 . . . Worker 1 | . . . . 1 . . . . . . . . Tunneler 3 | 2 . . . 1 . . . . . . . . Hauler 1 | . . . . 1 . . . . . . . . Recycler 2 | . . . . . . . . . 1 . 1 . Operator 1 | . . . . 1 . . . . . . . . Drone 1 | . . . . . . . . 1 . . . . Watcher 1 | . . . . 1 . . . . . . . . Swarmer 19 | . 3 . . 7 . 4 . . 2 . 3 . Grunt 28 | . 4 . . 11 . 1 . 4 8 . . . Duelist 1 | . . . . . . 1 . . . . . . Sentry 2 | . . . . . 1 . . . 1 . . . Programmer 15 | . . . . 3 . . . 2 10 . . . Behemoth 1 | . . . . . . 1 . . . . . . Subdweller 5 | . . 5 . . . . . . . . . . Scrapper 2 | . . . 2 . . . . . . . . . Decomposer 1 | . . . . . . . . 1 . . . . Samaritan 4 | . . . . . . 3 . 1 . . . . Assembled 2 | . . . . 2 . . . . . . . . Best Kill Streak 6 | 2 4 3 1 6 1 4 . 3 3 . 3 . Combat Bots Only 6 | . 4 3 1 6 1 4 . 3 3 . 2 . Max Kills in Single Turn 3 | 1 1 1 1 3 1 1 . 1 3 . 2 . Gunslinging 1 | . . . . 1 . . . . . . . . Exploded 3 | . . . . 2 . . . . 3 . 1 . Melee . | . . . . . . . . . . . . . Uniques/NPCs Destroyed . | . . . . . . . . . . . . . Combat | -11 -10 -10 -9 -6 -6 -6 -6 -5 -5 -5 -5 -5 -------- Run | Yrd Mat Sub Scr Fac Low Low Dat Pro Fac Was Fac Upp Hostile Shots Fired 608 | . 74 9 32 100 27 78 . 54 153 3 60 18 Missed 175 | . 17 2 5 28 6 28 . 14 46 . 24 5 Hits 433 | . 57 7 27 72 21 50 . 40 107 3 36 13 Melee 4 | . . . . . . 1 . . . 3 . . Projectile 429 | . 57 7 27 72 21 49 . 40 107 . 36 13 Critical Strikes 22 | . . . . 5 . 1 . 2 10 3 1 . Actively Blocked 2 | . . . . . . . . . 2 . . . Part Disruptions 1 | . . . . . 1 . . . . . . . Damage Taken 8243 | . 576 192 332 1324 285 1034 . 788 2615 117 773 207 Core 1661 | . 86 25 77 229 54 103 . 80 531 82 327 67 Absorbed by Shields . | . . . . . . . . . . . . . Redirected to Shielding 70 | . . . . . . . . . 70 . . . Regen/Repaired (Parts) 217 | . . . . 75 . 15 . 20 . . 107 . Core Remaining (%) 56 | 100 . . 24 . . . . 45 . . . . Volleys Fired 255 | 2 22 18 15 67 6 35 . 26 59 . 5 . Largest 2 | 2 2 2 2 2 2 2 . 2 2 . 1 . Hottest 160 | 60 95 105 155 160 60 60 . 60 110 . 75 . Shots Fired 493 | 4 42 36 29 127 13 68 . 52 117 . 5 . Gun 178 | 4 42 36 29 62 . . . . 3 . 2 . Cannon 312 | . . . . 65 13 68 . 52 114 . . . Launcher 3 | . . . . . . . . . . . 3 . Special . | . . . . . . . . . . . . . Kinetic 82 | 2 18 . 11 25 . . . . 26 . . . Thermal 386 | 2 20 18 18 102 13 68 . 52 91 . 2 . Explosive . | . . . . . . . . . . . . . Electromagnetic 25 | . 4 18 . . . . . . . . 3 . Robot Hit Streak 18 | 3 6 18 10 15 5 8 . 17 16 . 1 . Robot Miss Streak 3 | . 2 2 3 3 3 2 . 2 3 . 2 . Penetration Max 1 | . . . 1 . . . . . . . . . Secondary Targets 4 | . 1 1 1 1 . . . . . . . . Max Gunslinging Chain 1 | . 1 1 1 1 . . . . . . . . Shots Hit Robots 335 | 3 24 31 13 80 6 39 . 36 93 . 10 . Core Hits 138 | 2 10 10 4 41 2 14 . 16 33 . 6 . Critical Kills . | . . . . . . . . . . . . . Critical Parts Destroyed 1 | . . . . . . . . . . . 1 . Critical Strikes 7 | . . . 1 3 . . . . 2 . 1 . Burn 5 | . . . 1 3 . . . . 1 . . . Blast 1 | . . . . . . . . . 1 . . . Smash 1 | . . . . . . . . . . . 1 . Melee Attacks 19 | . . . . . . . . . 8 . 11 . Impact 9 | . . . . . . . . . . . 9 . Slashing . | . . . . . . . . . . . . . Piercing 10 | . . . . . . . . . 8 . 2 . Sneak Attacks . | . . . . . . . . . . . . . Combat Hostiles . | . . . . . . . . . . . . . Follow-up Attacks . | . . . . . . . . . . . . . Damage Inflicted 9512 | 35 301 390 316 2687 159 1088 . 1098 2895 . 543 . Guns 2007 | 35 301 390 316 920 . . . . 19 . 26 . Cannons 6463 | . . . . 1266 159 1088 . 1098 2852 . . . Explosions 759 | . . . . 501 . . . . . . 258 . Melee 272 | . . . . . . . . . 13 . 259 . Ramming 11 | . . . . . . . . . 11 . . . Kinetic 1464 | 12 126 . 116 468 . . . . 742 . . . Thermal 7392 | 23 126 182 200 2219 159 1088 . 1098 2129 . 168 . Explosive . | . . . . . . . . . . . . . Electromagnetic 373 | . 49 208 . . . . . . . . 116 . Impact 254 | . . . . . . . . . . . 254 . Slashing . | . . . . . . . . . . . . . Piercing 18 | . . . . . . . . . 13 . 5 . Highest Corruption 4 | . . . 1 3 3 . . 2 4 . 1 1 Average Corruption 1 | . . . 1 1 2 . . 1 2 . 1 1 Corruption Purged 8 | . . . . . 3 . . . 4 . 1 . Corruption Blocked . | . . . . . . . . . . . . . Effects 51 | . . . 3 15 3 . . 9 20 . 1 . Message Errors 8 | . . . 1 2 1 . . 2 1 . 1 . Matter Fused 15 | . . . . 4 . . . 2 9 . . . Heat Flow Errors 8 | . . . . 1 1 . . 2 4 . . . Energy Discharges 2 | . . . 1 . . . . 1 . . . . Parts Fused 1 | . . . . 1 . . . . . . . . Data Loss (minor) 6 | . . . 1 3 . . . 1 1 . . . Data Loss (major) 6 | . . . . 3 . . . . 3 . . . Misfires 2 | . . . . . 1 . . . 1 . . . Alerts 2 | . . . . 1 . . . 1 . . . . Weapon Failures 1 | . . . . . . . . . 1 . . . Overload Shots . | . . . . . . . . . . . . . Overflow Damage 530 | . . . . 130 31 55 . 71 134 . 109 . Projectiles 342 | . . . . 51 31 55 . 71 134 . . . Explosions 125 | . . . . 79 . . . . . . 46 . Melee 63 | . . . . . . . . . . . 63 . Knockbacks 6 | . . . . 3 . . . . 2 . 1 . Impact 1 | . . . . . . . . . . . 1 . Kinetic 5 | . . . . 3 . . . . 2 . . . Secondary . | . . . . . . . . . . . . . Self-Inflicted Damage 250 | . . . . 99 . . . . 5 . 146 . Shots 6 | . . . . 2 . . . . . . 4 . Rammed 1 | . . . . . . . . . 1 . . . Targets Rammed 1 | . . . . . . . . . 1 . . . Kicked . | . . . . . . . . . . . . . Crushed . | . . . . . . . . . . . . . Highest Temperature 533 | . 158 2 533 200 169 . . 190 216 . 5 . Average Temperature 117 | . 60 1 185 88 59 . . 76 67 . 5 . Received Heat Transfer 1509 | . 228 42 138 210 210 108 . 171 357 . 18 27 Effects 10 | . . . 10 . . . . . . . . . Shutdowns 2 | . . . 2 . . . . . . . . . Energy Bleed 1 | . . . 1 . . . . . . . . . Interference 1 | . . . 1 . . . . . . . . . Matter Decay 2 | . . . 2 . . . . . . . . . Damage (minor) 1 | . . . 1 . . . . . . . . . Damage (major) 3 | . . . 3 . . . . . . . . . Siege Activations . | . . . . . . . . . . . . . Martial Activations . | . . . . . . . . . . . . . Shielding Activations . | . . . . . . . . . . . . . Robots Disrupted . | . . . . . . . . . . . . . Combat Hostiles . | . . . . . . . . . . . . . Robots Corrupted . | . . . . . . . . . . . . . Combat Hostiles . | . . . . . . . . . . . . . Parts Fried 1 | . . 1 . . . . . . . . . . Impact Corruptions 4 | . . . . . . . . . . . 4 . Robots Melted . | . . . . . . . . . . . . . Combat Hostiles . | . . . . . . . . . . . . . Parts Melted 33 | . . 2 1 11 . . . 3 15 . 1 . Heat Transferred 10863 | 50 299 506 472 3699 222 1443 . 1369 2666 . 137 . Parts Sabotaged . | . . . . . . . . . . . . . Parts Stolen . | . . . . . . . . . . . . . Parts Stripped . | . . . . . . . . . . . . . Power Chain Reactions . | . . . . . . . . . . . . . Alert | -11 -10 -10 -9 -6 -6 -6 -6 -5 -5 -5 -5 -5 ------- Run | Yrd Mat Sub Scr Fac Low Low Dat Pro Fac Was Fac Upp Maximum Alert Level 1 | . . . . 1 . . . . . . . . Low Security (%) 90 | 100 100 . . 71 . . . . 100 100 100 . Level 1 9 | . . . . 28 . . . . . . . . Level 2 . | . . . . . . . . . . . . . Level 3 . | . . . . . . . . . . . . . Level 4 . | . . . . . . . . . . . . . Level 5 . | . . . . . . . . . . . . . High Security . | . . . . . . . . . . . . . Max Security . | . . . . . . . . . . . . . Peak Influence 329 | 5 100 . . 329 . . . . 180 59 147 . Initial 59 | . . . . . . . . . . 59 . . Average 70 | . 40 . . 141 . . . . 37 19 31 . Influence Increases 2410 | 10 171 . . 799 25 185 . 140 668 . 247 165 Destroy 0b10 Robot/C 1320 | . 140 . . 420 20 140 . 120 420 . 60 . Destroy 0b10 Robot/NC 50 | 10 . . . 25 5 . . . 5 . 5 . Destroy Leader 284 | . 30 . . 94 . 30 . 20 100 . 10 . Successful Hack 25 | . . . . . . . . . 25 . . . Disable Machine 135 | . . . . 75 . . . . 15 . 45 . Destroy Structure 101 | . 1 . . 50 . . . . 28 . 22 . Lose Combat Pursuer 495 | . . . . 135 . 15 . . 75 . 105 165 Influence Decreases 2260 | 10 150 21 . 522 302 160 25 140 497 171 110 152 Entered New Map 304 | . . 11 . . 104 . 25 . . 112 . 52 Time Decay 1573 | 10 130 . . 492 198 140 . 130 283 30 70 90 Lost Part 363 | . 20 10 . 30 . 20 . 10 214 29 20 10 Lost Ally 20 | . . . . . . . . . . . 20 . Squads Dispatched 21 | . 2 . . 4 . . . . 10 . 5 . Investigation 2 | . . . . 1 . . . . 1 . . . Extermination 8 | . . . . 2 . . . . 5 . 1 . Reinforcement 6 | . 2 . . 1 . . . . 1 . 2 . Assault . | . . . . . . . . . . . . . Garrison 5 | . . . . . . . . . 3 . 2 . Intercept . | . . . . . . . . . . . . . Searches Triggered . | . . . . . . . . . . . . . Construction Impeded 1 | . . . . . . . . . . . 1 . Haulers Reinforced 1 | . . . . . . . . . 1 . . . Active Scanning Responses . | . . . . . . . . . . . . . Cargo Convoy Interrupts . | . . . . . . . . . . . . . Stealth | -11 -10 -10 -9 -6 -6 -6 -6 -5 -5 -5 -5 -5 --------- Run | Yrd Mat Sub Scr Fac Low Low Dat Pro Fac Was Fac Upp Distress Signals 7 | . 1 . . 1 . . . . 2 . 3 . Communications Jammed . | . . . . . . . . . . . . . Distress Signals . | . . . . . . . . . . . . . Times Spotted 150 | . 14 11 11 32 5 7 . 6 30 6 17 11 Peak Tracking Total 9 | . 7 6 4 6 4 4 . 3 5 6 9 6 Tactical Retreats 15 | . . 1 . 5 . 1 . . 2 . 3 3 Traps | -11 -10 -10 -9 -6 -6 -6 -6 -5 -5 -5 -5 -5 ------- Run | Yrd Mat Sub Scr Fac Low Low Dat Pro Fac Was Fac Upp Traps Triggered 3 | . . . . . . . . . 3 . . . Indirectly . | . . . . . . . . . . . . . Trap Hack Attempts . | . . . . . . . . . . . . . Triggered . | . . . . . . . . . . . . . Disarmed . | . . . . . . . . . . . . . Reprogrammed . | . . . . . . . . . . . . . Reused . | . . . . . . . . . . . . . Traps Extracted . | . . . . . . . . . . . . . Installed . | . . . . . . . . . . . . . Triggered . | . . . . . . . . . . . . . Machines | -11 -10 -10 -9 -6 -6 -6 -6 -5 -5 -5 -5 -5 ---------- Run | Yrd Mat Sub Scr Fac Low Low Dat Pro Fac Was Fac Upp Machines Disabled 11 | . . . 2 5 . . . . 1 . 3 . Max in Single Turn 4 | . . . 2 4 . . . . 1 . 2 . Machines Repaired . | . . . . . . . . . . . . . Machines Dismantled . | . . . . . . . . . . . . . Machines Sabotaged . | . . . . . . . . . . . . . Overloaded Fab Kills . | . . . . . . . . . . . . . Hacking | -11 -10 -10 -9 -6 -6 -6 -6 -5 -5 -5 -5 -5 --------- Run | Yrd Mat Sub Scr Fac Low Low Dat Pro Fac Was Fac Upp Machines Accessed 24 | . 4 . 7 4 . . 4 . 4 . 1 . Terminals 10 | . 4 . . 2 . . . . 4 . . . Fabricators . | . . . . . . . . . . . . . Repair Stations 1 | . . . . . . . . . . . 1 . Recycling Units 2 | . . . . 2 . . . . . . . . Scanalyzers . | . . . . . . . . . . . . . Garrison Access . | . . . . . . . . . . . . . Total Hacks 127 | . 10 . 68 6 . . 32 . 9 . 2 . Successful 110 | . 3 . 68 . . . 32 . 5 . 2 . Failed 17 | . 7 . . 6 . . . . 4 . . . Catastrophic 2 | . . . . 1 . . . . 1 . . . Database Lockouts . | . . . . . . . . . . . . . Manual 21 | . 7 . . 6 . . . . 8 . . . Terminals 23 | . 10 . . 4 . . . . 9 . . . Fabricators . | . . . . . . . . . . . . . Repair Stations 2 | . . . . . . . . . . . 2 . Recycling Units 2 | . . . . 2 . . . . . . . . Scanalyzers . | . . . . . . . . . . . . . Garrison Access . | . . . . . . . . . . . . . Terminal Hacks 103 | . 1 . 68 . . . 32 . 2 . . . Record 80 | . . . 68 . . . 11 . 1 . . . Part Schematic 11 | . . . . . . . 11 . . . . . Robot Schematic 7 | . . . . . . . 7 . . . . . Prototype ID Bank 3 | . . . . . . . 3 . . . . . Branch Access Points 2 | . 1 . . . . . . . 1 . . . Fabricator Hacks . | . . . . . . . . . . . . . Repair Station Hacks 2 | . . . . . . . . . . . 2 . Scan Component 1 | . . . . . . . . . . . 1 . Repair 1 | . . . . . . . . . . . 1 . Recycling Unit Hacks . | . . . . . . . . . . . . . Scanalyzer . | . . . . . . . . . . . . . Garrison Access Hacks . | . . . . . . . . . . . . . Unauthorized Hacks 5 | . 2 . . . . . . . 3 . . . Terminals 5 | . 2 . . . . . . . 3 . . . Botnet 5 | . 2 . . . . . . . 3 . . . Fabricators . | . . . . . . . . . . . . . Repair Stations . | . . . . . . . . . . . . . Recycling Units . | . . . . . . . . . . . . . Scanalyzers . | . . . . . . . . . . . . . Garrison Access . | . . . . . . . . . . . . . Data Cores Recovered . | . . . . . . . . . . . . . Used . | . . . . . . . . . . . . . Hacking Detections 11 | . 3 . . 4 . . . . 3 . 1 . Full Trace Events 3 | . 1 . . 1 . . . . 1 . . . Feedback Events . | . . . . . . . . . . . . . Feedback Blocked . | . . . . . . . . . . . . . Robot Schematics Acquired 7 | . . . . . . . 7 . . . . . Robots Built . | . . . . . . . . . . . . . Authchips . | . . . . . . . . . . . . . Time . | . . . . . . . . . . . . . Total Robot Build Rating . | . . . . . . . . . . . . . Part Schematics Acquired 11 | . . . . . . . 11 . . . . . Parts Built . | . . . . . . . . . . . . . Authchips . | . . . . . . . . . . . . . Time . | . . . . . . . . . . . . . Total Part Build Rating . | . . . . . . . . . . . . . Part Studies Acquired . | . . . . . . . . . . . . . Parts Repaired 1 | . . . . . . . . . . . 1 . Time 38 | . . . . . . . . . . . 38 . Parts Recycled . | . . . . . . . . . . . . . Recycled Matter . | . . . . . . . . . . . . . Retrieved Matter . | . . . . . . . . . . . . . Retrieved Components . | . . . . . . . . . . . . . Parts Scanalyzed . | . . . . . . . . . . . . . Part Schematics Acquired . | . . . . . . . . . . . . . Parts Damaged . | . . . . . . . . . . . . . Bothacking | -11 -10 -10 -9 -6 -6 -6 -6 -5 -5 -5 -5 -5 ------------ Run | Yrd Mat Sub Scr Fac Low Low Dat Pro Fac Was Fac Upp Used RIF Installer . | . . . . . . . . . . . . . Robots Hacked . | . . . . . . . . . . . . . Non-combat . | . . . . . . . . . . . . . Combat . | . . . . . . . . . . . . . Robot Hacks Applied . | . . . . . . . . . . . . . Relay Couplers Released 4 | . . . . . . . . . 4 . . . Programmers 4 | . . . . . . . . . 4 . . . Fabnet Peak Effective % . | . . . . . . . . . . . . . Robots Rewired . | . . . . . . . . . . . . . Allies Hacked . | . . . . . . . . . . . . . Hacks Repelled . | . . . . . . . . . . . . . Allies | -11 -10 -10 -9 -6 -6 -6 -6 -5 -5 -5 -5 -5 -------- Run | Yrd Mat Sub Scr Fac Low Low Dat Pro Fac Was Fac Upp Total Allies 2 | . . . . . . . . . 1 . 1 . Largest Group 1 | . . . . . . . . . 1 . . . Highest-Rated Group 29 | . . . . . . . . . 29 . . . Highest-Rated Ally 29 | . . . . . . . . . 29 . . . Total Orders 8 | . . . 2 . . 1 . 1 . . . 4 EXPLORE 5 | . . . . . . 1 . 1 . . . 3 RETURN 3 | . . . 2 . . . . . . . . 1 Ally Attacks . | . . . . . . . . . . . . . Total Damage . | . . . . . . . . . . . . . Kills . | . . . . . . . . . . . . . Allies Corrupted . | . . . . . . . . . . . . . Allies Melted 5 | . . . 5 . . . . . . . . . Intel | -11 -10 -10 -9 -6 -6 -6 -6 -5 -5 -5 -5 -5 ------- Run | Yrd Mat Sub Scr Fac Low Low Dat Pro Fac Was Fac Upp Active Infowar (turns) 2926 | 24 84 . . 1443 1109 . . . 266 . . . Sensors 2818 | . . . . 1443 1109 . . . 266 . . . Seismic 108 | 24 84 . . . . . . . . . . . Robot Analysis Total . | . . . . . . . . . . . . . Derelict Logs Recovered 9 | . . 1 2 . 1 2 . 1 . . . 2 Drone Launches 12 | . . . 4 . . 5 . . . . . 3 Drone Recoveries 10 | . . . 4 . . 2 . 1 . . . 3 Exploration | -11 -10 -10 -9 -6 -6 -6 -6 -5 -5 -5 -5 -5 ------------- Run | Yrd Mat Sub Scr Fac Low Low Dat Pro Fac Was Fac Upp Turns Passed 13850 | 117 334 452 2512 1444 1122 4074 154 989 1981 125 360 186 Spaces Moved 6653 | 67 167 341 2405 760 546 660 81 231 652 96 266 381 Core 449 | 11 . . . . . 279 . 29 41 1 69 19 Treads 141 | 55 77 . . . . . . . . . 9 . Legs 2438 | 1 . . 77 760 546 381 81 202 190 95 105 . Wheels 2732 | . . 339 2328 . . . . . 65 . . . Hover 441 | . 90 2 . . . . . . 349 . . . Flight 452 | . . . . . . . . . 7 . 83 362 Fastest Speed 35 | 50 56 95 95 100 170 170 190 190 108 120 35 40 Average Speed 178 | 141 120 104 97 121 175 586 190 390 239 121 80 40 Slowest Speed 1200 | 160 180 116 170 176 176 1050 190 1100 1200 190 190 150 Overloaded Moves . | . . . . . . . . . . . . . Propulsion Burnouts . | . . . . . . . . . . . . . Robots Hopped . | . . . . . . . . . . . . . Potential Cave-ins . | . . . . . . . . . . . . . Cave-ins Triggered . | . . . . . . . . . . . . . Exploration Rate (%) 49 | 3 44 26 92 20 68 80 70 67 20 88 10 53 Regions Visited 12 Branch Regions 7 Pre-discovered Areas 8 | . . . 6 . . . 1 1 . . . . Known Exits Taken 4 | . . . . 1 1 . . 1 . . 1 . Unknown Exits Taken 6 | 1 1 1 1 . . 1 1 . . . . . Scrap Searched 18 | . . 8 3 . 3 3 . 1 . . . . Spaces Dug 8 | . . . . 4 1 1 . 2 . . . . Terrain Destroyed 85 | . . . 1 51 1 7 . 5 10 . 10 . Melee . | . . . . . . . . . . . . . Projectile 36 | . . . 1 12 1 7 . 5 10 . . . AOE 49 | . . . . 39 . . . . . . 10 . Terrain Rammed . | . . . . . . . . . . . . . Walls Destroyed . | . . . . . . . . . . . . . Machines Disabled . | . . . . . . . . . . . . . Actions | -11 -10 -10 -9 -6 -6 -6 -6 -5 -5 -5 -5 -5 --------- Run | Yrd Mat Sub Scr Fac Low Low Dat Pro Fac Was Fac Upp Total 8181 | 82 260 407 2560 1178 695 789 82 275 952 102 387 412 Wait 968 | . 40 18 76 324 142 77 2 12 157 1 89 30 Move 6642 | 66 166 340 2404 759 545 659 80 230 652 95 265 381 Hop . | . . . . . . . . . . . . . Pick Up 66 | 5 10 8 14 8 1 5 . . 13 . 2 . Fast Attach 75 | 8 3 4 11 6 . 5 . 1 27 2 8 . Attach 42 | . . 4 3 5 . 5 . 5 15 . 4 1 Detach 15 | 1 . 1 4 2 . 1 . 1 3 . 2 . Swap 29 | . 6 1 5 5 1 2 . . 6 3 . . Drop 65 | . 13 13 24 2 . . . . 11 1 1 . Fire 255 | 2 22 18 15 67 6 35 . 26 59 . 5 . Melee 19 | . . . . . . . . . 8 . 11 . Ram 1 | . . . . . . . . . 1 . . . Kick . | . . . . . . . . . . . . . Crush . | . . . . . . . . . . . . . Escape Stasis . | . . . . . . . . . . . . . Rewire 4 | . . . 4 . . . . . . . . . Trap . | . . . . . . . . . . . . . Miscellaneous . | . . . . . . . . . . . . . Route ------- -11/Scrapyard -10/Materials (discovered 4 exits: [*Mat] / *Min x2 / [*Sub]) -10/Subcaves (discovered 2 exits: [*Mat] / *Scr) -9/Scraptown (discovered 2 exits: *Fac x2) -6/Factory (discovered 5 exits: *Fac x3 / *Low x2) -6/Lower Caves -6/Lower Caves (discovered 2 exits: *Fac / *Dat) -6/Data Miner -5/Proximity Caves -5/Factory (discovered 5 exits: [*Fac] / Upp x2 / Ext x2) -5/Waste -5/Factory -5/Upper Caves (discovered 1 exit: Upp) History --------- Turn | Location | Event 44 | -11/Scrapyard | Discovered new exit (range 16) 118 | -11/Scrapyard | Entered Materials 152 | -10/Materials | Identified exit to Mines 343 | -10/Materials | Build established: Mutant 435 | -10/Materials | Discovered new exit (range 10) 446 | -10/Materials | Discovered new exit (range 6) 452 | -10/Materials | Entered Subcaves 453 | -10/Subcaves | Approached by a straggling Scientist 457 | -10/Subcaves | Ambushed by Subdwellers from Twisted Machinery 499 | -10/Subcaves | Lost 3 parts (1n1u1w) 554 | -10/Subcaves | Ambushed by swarm of Subdwellers 613 | -10/Subcaves | Discovered new exit (range 9) 799 | -10/Subcaves | Learned Materials garrison access intel 890 | -10/Subcaves | Build established: Subdweller-Mutant 904 | -10/Subcaves | Entered Scraptown 1362 | -9/Scraptown | Build established: Mutant 1400 | -9/Scraptown | Scanned Subdweller tech in exchange for log data 1403 | -9/Scraptown | Learned Factory trap positions 1404 | -9/Scraptown | Learned location of Quarantine (-2) 1418 | -9/Scraptown | Discovered new exit (range 5) 1539 | -9/Scraptown | Visited CPS Storage 1553 | -9/Scraptown | Visited UFD Registry 1716 | -9/Scraptown | Visited Assassins FH 1748 | -9/Scraptown | Visited Awakened 1799 | -9/Scraptown | Visited Shadow of the Wyrm 2043 | -9/Scraptown | Visited Symbiants 2072 | -9/Scraptown | Visited Cave Peace 2106 | -9/Scraptown | Registered with UFD as "Fiberspawn" 2174 | -9/Scraptown | Visited Infowarlord's Domain 2183 | -9/Scraptown | Found Exp. Sensor Array 2205 | -9/Scraptown | Visited LU-1G1's Boring Crew 2261 | -9/Scraptown | Visited Observation Area 2326 | -9/Scraptown | Discovered new exit (range 5) 2377 | -9/Scraptown | Found Scrap Suit 2405 | -9/Scraptown | Visited Cartography Club 2702 | -9/Scraptown | Learned location of Storage (-9) 2702 | -9/Scraptown | Learned location of Lower Caves (-7) 2702 | -9/Scraptown | Learned location of Proximity Caves (-6) 2702 | -9/Scraptown | Learned location of Cetus (-5) 2702 | -9/Scraptown | Learned 8 Materials zone layouts 2702 | -9/Scraptown | Learned 12 Materials zone layouts 2702 | -9/Scraptown | Learned 12 Factory zone layouts 2702 | -9/Scraptown | Learned 24 Factory zone layouts 2702 | -9/Scraptown | Learned 12 Research zone layouts 2702 | -9/Scraptown | Learned 16 Research zone layouts 2702 | -9/Scraptown | Learned 12 Lower Caves zone layouts 2702 | -9/Scraptown | Learned 16 Upper Caves zone layouts 2702 | -9/Scraptown | Learned 20 Proximity Caves zone layouts 2702 | -9/Scraptown | Learned 4 Hub_04(d) zone layouts 2702 | -9/Scraptown | Learned Storage emergency access door positions 2702 | -9/Scraptown | Learned location of 2 exits from Factory 2702 | -9/Scraptown | Learned location of 3 exits from Upper Caves 2795 | -9/Scraptown | Visited Supply Room 2824 | -9/Scraptown | Visited Scrapoid Pod Storage 2845 | -9/Scraptown | Visited Scrapoid Research Area 2890 | -9/Scraptown | Visited Supply Room 2924 | -9/Scraptown | Visited Chapter 10 2951 | -9/Scraptown | Visited Research Penetration Think Tank 3066 | -9/Scraptown | Met Optimus 3066 | -9/Scraptown | Accepted into 0bPrime 3183 | -9/Scraptown | Civil war broke out across Scraptown 3266 | -9/Scraptown | Lost 4 allies 3288 | -9/Scraptown | Core integrity fell below 50% 3332 | -9/Scraptown | Lost 5 allies 3362 | -9/Scraptown | Optimus destroyed in the chaos of civil war 3412 | -9/Scraptown | System corruption cleaned by C-Scrubber 3416 | -9/Scraptown | Entered Factory 3416 | -6/Factory | Evolved 8 slots: Propulsion x2, Utility x6 3417 | -6/Factory | Identified exit to Lower Caves 3418 | -6/Factory | Identified exit to Factory 3420 | -6/Factory | Loaded intel: 90 trap records 3668 | -6/Factory | Build established: Scavenger-Scrapper 4860 | -6/Factory | Entered Lower Caves 4861 | -6/Lower Caves | Identified exit to Lower Caves 5166 | -6/Lower Caves | Build established: Scavenger-Mutant 5287 | -6/Lower Caves | Attracted the attention of an 0b10 checkpoint 5684 | -6/Lower Caves | Learned Factory emergency access door positions 5944 | -6/Lower Caves | Ambushed by wild Derelicts 5982 | -6/Lower Caves | Entered another Lower Caves area 5982 | -6/Lower Caves | Discovered exit to Factory (range 14) 6496 | -6/Lower Caves | Spotted B-75 Beast 6573 | -6/Lower Caves | Destroyed B-75 Beast 6583 | -6/Lower Caves | Lost 5 parts (2n1u2w) 7041 | -6/Lower Caves | Learned 8 Factory zone layouts 7603 | -6/Lower Caves | Found Alien Artifact 9520 | -6/Lower Caves | Discovered new exit (range 13) 9715 | -6/Lower Caves | Learned Factory stockpile data 10056 | -6/Lower Caves | Entered Data Miner 10056 | -6/Data Miner | Accompanied by 2 allies 10056 | -6/Data Miner | Discovered new exit (range 6) 10093 | -6/Data Miner | Met Data Miner 10134 | -6/Data Miner | Learned location of Section 7 (-2) 10134 | -6/Data Miner | Acquired the access code to Warlord's prototype stash 10167 | -6/Data Miner | Received God Mode back door access code from Data Miner 10210 | -6/Data Miner | Entered Proximity Caves 10210 | -5/Proximity Caves | Accompanied by 2 allies 10545 | -5/Proximity Caves | Learned location of Warlord (-5) 10586 | -5/Proximity Caves | Core integrity fell below 50% 10610 | -5/Proximity Caves | Lost 3 parts (1n2u) 11172 | -5/Proximity Caves | Build established: Derelict-Mutant 11199 | -5/Proximity Caves | Entered Factory 11199 | -5/Factory | Evolved 2 slots: Utility x2 11200 | -5/Factory | Identified exit to Upper Caves 11200 | -5/Factory | Identified exit to Extension 11971 | -5/Factory | Build established: Scavenger-Mutant 12244 | -5/Factory | Discovered new exit (range 16) 12520 | -5/Factory | Lost 4 parts (2n1u1w) 12695 | -5/Factory | Lost 3 parts (2n1u) 12942 | -5/Factory | Garrison activated, responded to threat 12958 | -5/Factory | Lost 4 parts (1p1n2u) 13124 | -5/Factory | Identified Core Expander 13124 | -5/Factory | Installed Core Expander, added new Weapon slot 13140 | -5/Factory | Core integrity fell below 50% 13170 | -5/Factory | Lost 5 parts (1p2n2u) 13180 | -5/Factory | Sucked down chute 13180 | -5/Factory | Entered Waste 13185 | -5/Waste | Spotted C-40 Crusher 13193 | -5/Waste | Spotted C-40 Crusher 13202 | -5/Waste | Spotted C-40 Crusher 13209 | -5/Waste | Crushed by Compactor (1 part destroyed, 2 dropped) 13212 | -5/Waste | Crushed by Compactor (1 part destroyed, 1 dropped) 13240 | -5/Waste | Spotted C-40 Crusher 13244 | -5/Waste | Spotted C-40 Crusher 13251 | -5/Waste | Crushed by Compactor (1 part destroyed, 2 dropped) 13275 | -5/Waste | Spotted C-40 Crusher 13282 | -5/Waste | Discovered new exit (range 16) 13305 | -5/Waste | Entered Factory 13482 | -5/Factory | Repaired Carbon-fiber Leg 13553 | -5/Factory | Garrison activated, responded to threat 13575 | -5/Factory | Core integrity fell below 20% 13582 | -5/Factory | Released all parts (10) 13660 | -5/Factory | Discovered exit to Upper Caves (range 14) 13665 | -5/Factory | Entered Upper Caves 13666 | -5/Upper Caves | Identified exit to Upper Caves 13686 | -5/Upper Caves | Learned Factory interactive machine intel 13698 | -5/Upper Caves | Learned 4 Factory zone layouts 13851 | -5/Upper Caves | Destroyed by S-27 Virus with Autogun Last Messages --------------- 13625_ K-01 Serf collects debris. 13630_ Penetrated by Slug. 13630_ Slug penetrates K-01 Serf. 13635_ Acquired Com. Wheel. 13652_ Acquired Mni. Drone Bay. 13660_ EXIT=FOUND: UPPER CAVES LOCATION=UPPER CAVES GOAL=ESCAPE 13666_ Mini Drone released from Mni. Drone Bay. Loading 1 Upper Caves exit... 13667_ Mini Drone released from Mni. Drone Bay. Loading 16 Upper Caves zones... 13668_ Mini Drone released from Mni. Drone Bay. 13686_ Acquired derelict log, extracted data. Data stored: Factory interactive machine intel. 13698_ Acquired derelict log, extracted data. Data stored: Factory zone layouts (x4). 13722_ Mini Drone retrieved by Mni. Drone Bay (no repairs). 13838_ VTOL Module destroyed. 13846_ S-27 Virus destroyed. Map ----- +----------------------------------------------------+ | ??????????????????????#######???# #?# | | ?????????????????????## ##### ### | | ?????????????????????# | | ?????????????????????# ## | | ?????????????????????# ### | | ?????????????????????# # #?# | | ?????????????????????## ## ### # | | ??????????????????????####### # # # ## | | ????????????????????????????# # # ## ### | | ???????????????????????????## # #### ### | | ????????????????????????#### %^ #### ## | | ????????????????????????# ; # ### ### | | ????????????????????????# # # ## # ##?# | | ????????????????????????# ## #### #### | | ?????????????????????#### ###??## # | | ?????????????????????# ##?????## #### | | ?????????????????????# ###???????# ###?? | | ????????????????????## ## #?????????### ##? | | ????????????????????# ## #??????????## #? | | ????????????????????# ## #????####### #? | | ????????????????????## ###### ## #? | | ?????????????????????## ##? | | ??????????????????????# ## #?? | | ??????????????????????# ##### ##?? | | ?????????????????????## ##???## #### | | ????????????????????## @ #?????# ## | | ????????????????????# ##### ##???### | | ????????????????????# ####???###????# ## | | ????????????????????# ##????????????# #? | | ????????????????????# ##????????????# #? | | ????????????????????# #????????????# ###? | | ????????????????????# #????????????## ##??? | | ????????????????????# #?????????????## ##???? | | ????????????????????# ##??????????????## #??? | | ????????????????????# ##????????????????###?# | | ????????????????????#####?????????????????????## | | ???????????????????????????????????????????????### | | ?????????????????????????????????????????????????? | | ?????????????????????????????????????????????????? | | ?????????????????????????????????????????????????? | | ?????????????????????????????????????????????????? | | ?????????????????????????????????????????????????? | | ?????????????????????????????????????????????????? | | ?????????????????????????????????????????????????? | | ?????????????????????????????????????????????????? | | ?????????????????????????????????????????????????? | | ?????????????????????????????????????????????????? | | ?????????????????????????????????????????????????? | | ?????????????????????????????????????????????????? | | ?????????????????????????????????????????????????? | +----------------------------------------------------+ Best States ------------- Heat Dissipation 116 Energy Generation 18 Energy Capacity 650 Matter Stores 300 Matter Capacity 300 Sight Range 16 Robot Scan Range 20 Terrain Scan Density 10 EM Shielding 2 Armor Coverage 800 Resistance: KI 25 Weapon Shielding 66 Evasion (%) 62 Targeting Accuracy 5 Launcher Accuracy 20 Target Analysis 9 Recoil Reduction 2 Salvage Targeting 4 Item Schematics ----------------- Combat Drone Bay | -6/Data Miner | Free Lgt. Regenerative Plating | -6/Data Miner | Free Cld. Gravmag System | -6/Data Miner | Free Prc. Matter Filter | -6/Data Miner | Free Tiamat Missile Launcher | -6/Data Miner | Free Hvy. Siege Treads | -6/Data Miner | Free Adv. Coolant Injector | -6/Data Miner | Free Matter Neutralizer | -6/Data Miner | Free Hvy. Shock Bomb Launcher | -6/Data Miner | Free Com. HERF Cannon | -6/Data Miner | Free Lgt. Particle Reactor | -6/Data Miner | Free Robot Schematics ------------------ L-41 Fighter | -6/Data Miner | Free S-27 Virus | -6/Data Miner | Free A-15 Conveyor | -6/Data Miner | Free B-60 Warrior | -6/Data Miner | Free H-66 Slayer | -6/Data Miner | Free G-67 Veteran | -6/Data Miner | Free L-61 Swordsman | -6/Data Miner | Free Fabricated ------------ Nothing Repaired ---------- Carbon-fiber Leg | 2% | -5/Factory Studied --------- None Alien Tech Used ----------------- Core Expander Achievements -------------- Civilization 2243 Fancy Inventory Link The Feds Satisfying Uncivil War Challenges ------------ None Game ------ Seed InterceptEncryptedSource Manual? 0 Play Time 02:06:55 Cumulative 74.9 hours Start 2026.07.16 @ 21:27:52 End 2026.07.18 @ 13:27:36 Sessions 5 Manual Loads 0 Difficulty Rogue Special Mode None Game No. 42 Rogue 42 Adventurer 0 Explorer 0 Win Type - Total 0 Types 0/0/0/0/0/0/0/0/0/0 Lore% 32 Gallery% 46 Achievement% 33 Wizard Run 0 Options --------- Layout 0 ASCII 0 Keyboard 1 Movement Vi Keybinds 0 Fullscreen 1 Font 24/Smallcaps Map View 76x50 Zoom Use 0% Tactical HUD 1 Map Filters NONE Filters NONE Steam 1 RUN: 72c661fd-0d99-4f9d-80b7-a55e00d947d5